fUSD/lending_fUSD_20250419
["ID","MTS","AMOUNT","RATE_DAILY","PERIOD"]
[358400741,1745067083798,-206.71414774,0.00078891,120]
[358400742,1745067083808,-20892.0,0.000789,120]
[358400743,1745067083817,-206.71414774,0.00078972,120]
[358400744,1745067083826,-212.32908403,0.00078987,60]
[358400745,1745067083836,-50000.0,0.00079,79]
[358400746,1745067083846,-947.64086268,0.00079,120]
[358400747,1745067083856,-150.0,0.00079027,120]
[358400748,1745067083866,-800.0,0.00079049,120]
[358400749,1745067083876,-206.71414774,0.00079052,120]
[358400750,1745067083886,-150.0,0.0007906,120]
[358400751,1745067083895,-500.0,0.00079127,120]
[358400752,1745067083904,-2700.0,0.00079133,120]
[358400753,1745067083914,-206.71414774,0.00079133,120]
[358400754,1745067083923,-150.0,0.00079194,120]
[358400755,1745067083932,-150.0,0.00079194,120]
[358400756,1745067083942,-206.71414774,0.00079214,120]
[358400757,1745067083951,-573.01483052,0.00079262,120]
[358400758,1745067083961,-206.71414774,0.00079294,120]
[358400759,1745067083970,-150.0,0.0007936,120]
[358400760,1745067083979,-5081.238,0.00079368,120]
[358400761,1745067083989,-206.71414774,0.00079375,120]
[358400762,1745067083999,-150.0,0.00079452,120]
[358400763,1745067084009,-206.71414774,0.00079456,120]
[358400764,1745067084018,-810.81938432,0.00079479,120]
[358400765,1745067084028,-83939.8217589,0.000795,30]
[358400766,1745067084038,-150.0,0.00079526,120]
[358400767,1745067084047,-150.0,0.00079526,120]
[358400768,1745067084056,-206.71414774,0.00079536,120]
[358400769,1745067084067,-1000.4461567,0.00079566,120]
[358400770,1745067084078,-150.0,0.00079612,120]
[358400771,1745067084087,-206.71414774,0.00079617,120]
[358400772,1745067084097,-150.0,0.00079639,120]
[358400773,1745067084105,-150.0,0.00079685,120]
[358400774,1745067084115,-281467.0,0.0007969,120]
[358400775,1745067084123,-150.0,0.00079693,120]
[358400776,1745067084132,-21615.0,0.00079697,30]
[358400777,1745067084142,-206.71414774,0.00079698,120]
[358400778,1745067084151,-206.71414774,0.00079778,120]
[358400779,1745067084160,-206.71414774,0.00079859,120]
[358400780,1745067084169,-160.47707709,0.00079859,120]
[358400781,1745067084178,-185.30188308,0.00079859,120]
[358400782,1745067084188,-162.76910042,0.00079859,120]
[358400783,1745067084197,-252.72820687,0.00079859,120]
[358400784,1745067084206,-186.96512283,0.00079859,120]
[358400785,1745067084215,-481.14516081,0.0007986,120]
[358400786,1745067084225,-3000.0,0.0007986,45]
[358400787,1745067084235,-1725.19362112,0.00079885,120]
[358400788,1745067084244,-1008.26,0.000799,120]
[358400789,1745067084253,-50000.0,0.0008,80]
[358400790,1745067084262,-1000.0,0.0008,120]
[358400791,1745067084271,-1000000.0,0.0008,120]
[358400792,1745067084279,-929.84271673,0.0008,120]
[358400793,1745067084289,-1000000.0,0.0008,120]
[358400794,1745067084298,-1000000.0,0.0008,120]
[358400795,1745067084307,-1000000.0,0.0008,120]
[358400796,1745067084316,-1000000.0,0.0008,120]
[358400797,1745067084325,-1000000.0,0.0008,120]
[358400798,1745067084335,-1000000.0,0.0008,120]
[358400799,1745067084344,-1000000.0,0.0008,120]
[358400800,1745067084354,-1000000.0,0.0008,120]
[358400801,1745067084363,-111360.64864436,0.0008,2]
[358400802,1745067084372,-909.74912927,0.0008,14]
[358400803,1745067084381,-200.0,0.0008,8]
[358400804,1745067084390,-15425.73541858,0.0008,30]
[358400805,1745067084399,-70995.81890404,0.0008,2]
[358400806,1745067084407,-100000.0,0.0008,20]
[358400807,1745067084416,-500000.0,0.0008,120]
[358400808,1745067084426,-461.000001,0.0008,2]
[358400809,1745067084435,-874.0,0.0008,120]
[358400810,1745067084451,-1000000.0,0.0008,120]
[358400811,1745067084461,-1000000.0,0.0008,120]
[358400812,1745067084470,-1000000.0,0.0008,120]
[358400813,1745067084479,-1000000.0,0.0008,120]
[358400814,1745067084488,-1000000.0,0.0008,120]
[358400815,1745067084498,-170.0,0.0008,120]
[358400816,1745067084507,-240.0,0.0008,120]
[358400817,1745067084517,-1386.97,0.0008,120]
[358400818,1745067084526,-2961.52,0.0008,60]
[358400819,1745067084535,-1008.26,0.0008005,120]
[358400820,1745067084545,-150.0,0.00080147,120]
[358400821,1745067084554,-2000.0,0.000802,120]
[358400822,1745067084564,-1354.064876,0.000802,120]
[358400823,1745067084573,-838.11,0.000805,30]
[358400824,1745067084583,-500.0,0.00080592,120]
[358400825,1745067084591,-150.0,0.00080821,120]
[358400826,1745067084601,-1000000.0,0.00081,120]
[358400827,1745067084614,-1616.60231902,0.0008137,30]
[358400828,1745067084623,-1000000.0,0.000815,120]
[358400829,1745067084632,-1000000.0,0.000815,120]
[358400830,1745067084641,-1000000.0,0.000815,120]
[358400831,1745067084651,-1000000.0,0.000815,120]
[358400832,1745067084660,-1000000.0,0.000815,120]
[358400833,1745067084669,-1000000.0,0.000815,120]
[358400834,1745067084679,-1000000.0,0.000815,120]
[358400835,1745067084689,-150.0,0.00081708,120]
[358400836,1745067084698,-500.0,0.00081803,120]
[358400837,1745067084708,-50000.0,0.00082,82]
[358400838,1745067084718,-1000000.0,0.00082,120]
[358400839,1745067084731,-250000.0,0.00082,120]
[358400840,1745067084742,-500.0,0.00082191,120]
[358400841,1745067084751,-150.0,0.00082191,120]
[358400842,1745067084761,-500.0,0.00082191,120]
[358400843,1745067084772,-153.95072668,0.00082191,120]
[358400844,1745067084782,-600.0,0.00082192,120]
[358400845,1745067084791,-600.0,0.00082192,120]
[358400846,1745067084801,-500.0,0.00082192,120]
[358400847,1745067084811,-1000.0,0.00082192,60]
[358400848,1745067084821,-567.7552906,0.00082192,120]
[358400849,1745067084832,-500.0,0.00082192,120]
[358400850,1745067084842,-500.0,0.00082192,120]
[358400851,1745067084851,-324.76234472,0.00082192,120]
[358400852,1745067084861,-237.24301804,0.000822,120]
[358400853,1745067084871,-1000000.0,0.000825,120]
[358400854,1745067084880,-1000000.0,0.000825,120]
[358400855,1745067084890,-1000000.0,0.000825,120]
[358400856,1745067084900,-1000000.0,0.000825,120]
[358400857,1745067084910,-1000000.0,0.000825,120]
[358400858,1745067084920,-150.0,0.00082631,120]
[358400859,1745067084930,-150.0,0.00082905,120]
[358400860,1745067084939,-200.0,0.00082999,120]
[358400861,1745067084949,-500.0,0.00082999,120]
[358400862,1745067084960,-1000000.0,0.00083,120]
[358400863,1745067084970,-2000.0,0.00083,120]
[358400864,1745067084981,-150.0,0.0008314,120]
[358400865,1745067084991,-150.0,0.00083141,120]
[358400866,1745067085001,-170.28082687,0.00083561,120]
[358400867,1745067085011,-150.0,0.00083751,120]
[358400868,1745067085020,-1000.0,0.00083999,120]
[358400869,1745067085030,-50000.0,0.00084,84]
[358400870,1745067085039,-1000000.0,0.00084,120]
[358400871,1745067085049,-1000000.0,0.00084,120]
[358400872,1745067085058,-1000000.0,0.00084,120]
[358400873,1745067085069,-1000000.0,0.00084,120]
[358400874,1745067085079,-1000000.0,0.00084,120]
[358400875,1745067085090,-1000000.0,0.00084,120]
[358400876,1745067085184,-250000.0,0.00085,120]
[358400877,1745067085194,-330.0,0.00085,120]
[358400878,1745067085204,-1000000.0,0.00085,120]
[358400879,1745067085213,-1000000.0,0.00085,120]
[358400880,1745067085223,-1000000.0,0.00085,120]
[358400881,1745067085232,-1000000.0,0.00085,120]
[358400882,1745067085242,-1000000.0,0.00085,120]
[358400883,1745067085251,-1000000.0,0.00085,120]
[358400884,1745067085261,-1000000.0,0.00085,120]
[358400885,1745067085272,-2000.0,0.000857,120]
[358400886,1745067085281,-50000.0,0.00086,86]
[358400887,1745067085290,-200.0,0.00086,120]
[358400888,1745067085299,-291.9,0.00086,120]
[358400889,1745067085309,-1000000.0,0.00087,120]
[358400890,1745067085318,-1000000.0,0.00087,120]
[358400891,1745067085328,-1000000.0,0.00087,120]
[358400892,1745067085337,-1000000.0,0.00087,120]
[358400893,1745067085347,-1000000.0,0.00087,120]
[358400894,1745067085356,-600.0,0.00087671,120]
[358400895,1745067085366,-600.0,0.00087671,120]
[358400896,1745067085375,-2000.0,0.0008796,35]
[358400897,1745067085386,-50000.0,0.00088,88]
[358400898,1745067085395,-380.0,0.00088,120]
[358400899,1745067085406,-1000000.0,0.00088,120]
[358400900,1745067085416,-22100.36712931,0.00088,120]
[358400901,1745067085427,-2000.0,0.000884,120]
[358400902,1745067085436,-380.0,0.000888,120]
[358400903,1745067085446,-641.85033446,0.00088843,120]
[358400904,1745067085456,-1000000.0,0.00089,120]
[358400905,1745067085466,-350.0,0.00089,120]
[358400906,1745067085475,-1000000.0,0.00089,120]
[358400907,1745067085485,-1000.0,0.00089999,120]
[358400908,1745067085494,-50000.0,0.0009,90]
[358400909,1745067085504,-301.53,0.0009,2]
[358400910,1745067085514,-1000.0,0.0009,7]
[358400911,1745067085524,-1000000.0,0.0009,120]
[358400912,1745067085533,-1000000.0,0.0009,120]
[358400913,1745067085543,-433.69411115,0.0009,120]
[358400914,1745067085553,-250000.0,0.0009,120]
[358400915,1745067085562,-360.0,0.0009,120]
[358400916,1745067085571,-1136.70757079,0.0009,120]
[358400917,1745067085581,-200000.0,0.0009,120]
[358400918,1745067085591,-170.0,0.0009,120]
[358400919,1745067085601,-500.0,0.0009041,120]
[358400920,1745067085615,-500.0,0.0009041,120]
[358400921,1745067085624,-500.0,0.0009041,120]
[358400922,1745067085634,-500.0,0.0009041,120]
[358400923,1745067085644,-500.0,0.0009041,120]
[358400924,1745067085656,-500.0,0.0009041,120]
[358400925,1745067085665,-500.0,0.0009041,120]
[358400926,1745067085676,-500.0,0.0009041,120]
[358400927,1745067085688,-500.0,0.0009041,120]
[358400928,1745067085698,-500.0,0.0009041,120]
[358400929,1745067085707,-500.0,0.0009041,120]
[358400930,1745067085717,-500.0,0.0009041,120]
[358400931,1745067085727,-500.0,0.0009041,120]
[358400932,1745067085736,-500.0,0.0009041,120]
[358400933,1745067085746,-500.0,0.0009041,120]
[358400934,1745067085755,-500.0,0.0009041,120]
[358400935,1745067085765,-500.0,0.0009041,120]
[358400936,1745067085774,-500.0,0.0009041,120]
[358400937,1745067085785,-500.0,0.0009041,120]
[358400938,1745067085795,-188.34573507,0.0009041,120]
[358400939,1745067085805,-50000.0,0.00091,91]
[358400940,1745067085817,-2000.0,0.000912,120]
[358400941,1745067085827,-50000.0,0.00092,92]
[358400942,1745067085836,-640.46504606,0.00092,120]
[358400943,1745067085845,-200.0,0.000925,120]
[358400944,1745067085855,-50000.0,0.00093,2]
[358400945,1745067085864,-50000.0,0.00093,93]
[358400946,1745067085874,-600.0,0.00093151,120]
[358400947,1745067085883,-440.56323352,0.00093151,120]
[358400948,1745067085892,-1000.0,0.00093769,120]
[358400949,1745067085902,-2000.0,0.000939,120]
[358400950,1745067085911,-170709.37188476,0.00093998,15]
[358400951,1745067085920,-50000.0,0.00094,2]
[358400952,1745067085929,-50000.0,0.00094,94]
[358400953,1745067085939,-1354.8022125,0.00094,120]
[358400954,1745067085948,-268.13961461,0.0009429,7]
[358400955,1745067085958,-2000.0,0.0009432,35]
[358400956,1745067085967,-50000.0,0.00095,95]
[358400957,1745067085976,-50000.0,0.00095,2]
[358400958,1745067085985,-281022.48238623,0.00095,120]
[358400959,1745067085995,-1499.999999,0.00095,120]
[358400960,1745067086004,-250000.0,0.00095,120]
[358400961,1745067086014,-1000.0,0.0009589,120]
[358400962,1745067086023,-50000.0,0.00096,96]
[358400963,1745067086032,-50000.0,0.00096,2]
[358400964,1745067086041,-6163.75213491,0.00096,120]
[358400965,1745067086050,-2000.0,0.000965,35]
[358400966,1745067086059,-2000.0,0.000967,120]
[358400967,1745067086068,-50000.0,0.00097,97]
[358400968,1745067086078,-50000.0,0.00097,2]
[358400969,1745067086087,-25588.45619802,0.000975,120]
[358400970,1745067086096,-1589.26664213,0.000975,120]
[358400971,1745067086107,-1381.56258464,0.00097654,120]
[358400972,1745067086116,-50000.0,0.00098,98]
[358400973,1745067086126,-50000.0,0.00098,2]
[358400974,1745067086136,-1000.0,0.00098053,120]
[358400975,1745067086148,-500.0,0.0009863,120]
[358400976,1745067086157,-600.0,0.0009863,120]
[358400977,1745067086167,-2000.0,0.0009869,35]
[358400978,1745067086176,-50000.0,0.00099,99]
[358400979,1745067086186,-50000.0,0.00099,2]
[358400980,1745067086195,-2034.30813711,0.00099,120]
[358400981,1745067086204,-2000.0,0.000994,120]
[358400982,1745067086214,-1000.0,0.00099999,120]
[358400983,1745067086223,-50000.0,0.001,100]
[358400984,1745067086233,-50000.0,0.001,2]
[358400985,1745067086242,-1000.0,0.001,120]
[358400986,1745067086251,-831.84,0.001,120]
[358400987,1745067086261,-341314.26327405,0.001,120]
[358400988,1745067086345,-792.59948772,0.00064657,2]
[358400989,1745067087032,500.0,0.00047929,120]
[358400990,1745067088285,500.0,0.00047929,120]
[358400991,1745067102311,1069.0,0.00047929,30]
[358400992,1745067111318,500.0,0.00047929,120]
[358400993,1745067132869,500.0,0.00047929,120]
[358400994,1745067152320,500.0,0.00047929,120]
[358400995,1745067161796,150.0,0.00047929,30]
[358400996,1745067177183,500.0,0.00047929,120]
[358400997,1745067195578,500.0,0.00047929,120]
[358400998,1745067218459,500.0,0.00047929,120]
[358400999,1745067236334,500.0,0.00047319,120]
[358401000,1745067262718,500.0,0.00047319,120]
[358401001,1745067275012,227.0,0.00047319,30]
[358401002,1745067279870,969.00113443,0.00047319,30]
[358401003,1745067284718,801.43,0.00047319,30]
[358401004,1745067298404,2000.0,0.00047319,120]
[358401005,1745067305053,365.35393511,0.00047319,30]
[358401006,1745067308730,499.999999,0.00047319,120]
[358401007,1745067329765,500.0,0.00047319,120]
[358401008,1745067353719,500.0,0.00047319,120]
[358401009,1745067374789,500.0,0.00047319,120]
[358401010,1745067409401,500.0,0.00047319,120]
[358401011,1745067432895,500.0,0.00047319,120]
[358401012,1745067453333,500.0,0.00047319,120]
[358401013,1745067470267,500.0,0.00047319,120]
[358401014,1745067503322,500.0,0.00047319,120]
[358401015,1745067533093,500.0,0.00047319,120]
[358401016,1745067547139,544.13891233,0.00048196,60]
[358401017,1745067551964,500.0,0.00048196,120]
[358401018,1745067575847,500.0,0.00048196,120]
[358401019,1745067610232,500.0,0.00048196,120]
[358401020,1745067638823,500.0,0.00048196,120]
[358401021,1745067659352,500.0,0.00048196,120]
[358401022,1745067677285,500.0,0.00048196,120]
[358401023,1745067682989,500000.0,0.00048196,30]
[358401024,1745067703407,500.0,0.00048196,120]
[358401025,1745067720466,500.0,0.00048196,120]
[358401026,1745067762191,150.0,0.00048196,30]
[358401027,1745067772426,500.0,0.00048196,120]
[358401028,1745067792060,500.0,0.00048196,120]
[358401029,1745067795907,1131.0,0.00048196,120]
[358401030,1745067797349,263.37136232,0.00048196,120]
[358401031,1745067813578,500.0,0.00048196,120]
[358401032,1745067836847,500.0,0.00047795,120]
[358401033,1745067859151,500.0,0.00047795,120]
[358401034,1745067877659,500.0,0.00047795,120]
[358401035,1745067898130,500.0,0.00047795,120]
[358401036,1745067923367,500.0,0.00047795,120]
[358401037,1745067938546,500.0,0.00047795,120]
[358401038,1745067955720,500.0,0.00047795,120]
[358401039,1745067982434,500.0,0.00047795,120]
[358401040,1745067996610,2000.0,6e-05,30]
[358401041,1745068000680,500.0,0.00047795,120]
[358401042,1745068017199,500.0,0.00047795,120]
[358401043,1745068039246,500.0,0.00047795,120]
[358401044,1745068057046,500.0,0.00047795,120]
[358401045,1745068078251,500.0,0.00047795,120]
[358401046,1745068096496,500.0,0.00047795,120]
[358401047,1745068114940,500.0,0.00047795,120]
[358401048,1745068127240,250.0,0.00017,2]
[358401049,1745068128354,300.0,0.00019,2]
[358401050,1745068141520,500.0,0.00047792,120]
[358401051,1745068160521,500.0,0.00047792,120]
[358401052,1745068176055,500.0,0.00047792,120]
[358401053,1745068192899,500.0,0.00047792,120]
[358401063,1745068222319,500.0,0.00047792,120]
[358401124,1745068237284,500.0,0.00047792,120]
[358401128,1745068237936,-391.74,0.000205,2]
[358401129,1745068237946,-250.0,0.0002075,2]
[358401130,1745068237956,-350.0,0.00021,2]
[358401131,1745068237967,-250.0,0.00021513,2]
[358401132,1745068237980,-665.99059365,0.0002255,2]
[358401133,1745068237990,-250.0,0.0002255,2]
[358401134,1745068238000,-400.0,0.00023,2]
[358401135,1745068238010,-159.554766,0.000232,2]
[358401136,1745068238019,-174.186776,0.000232,2]
[358401137,1745068238029,-250.0,0.00023384,5]
[358401138,1745068238040,-159.554766,0.00023568,5]
[358401139,1745068238050,-300.0,0.00024899,2]
[358401140,1745068238060,-159.554766,0.000249,3]
[358401141,1745068238070,-174.186776,0.000249,3]
[358401142,1745068238080,-9657.78576851,0.000249,2]
[358401143,1745068238256,-5040.65423149,0.000249,2]
[358401144,1745068238267,-450.0,0.00025,2]
[358401145,1745068238276,-250.0,0.0002552,5]
[358401146,1745068238286,-2700.21292479,0.000259,6]
[358401147,1745068238297,-300.0,0.00026239,2]
[358401148,1745068238307,-250.0,0.0002624,5]
[358401149,1745068238319,-7221.6,0.0002624,2]
[358401150,1745068238328,-150.99,0.0002624,2]
[358401151,1745068238338,-9999.99,0.0002624,2]
[358401152,1745068238349,-11002.08,0.0002624,10]
[358401153,1745068238359,-281.57822874,0.0002624,2]
[358401154,1745068238368,-360.0,0.00026977,2]
[358401156,1745068238378,-500.0,0.00027,2]
[358401158,1745068238388,-487.24439259,0.00027373,2]
[358401161,1745068238398,-500.0,0.00027373,2]
[358401162,1745068238407,-500.0,0.00027373,2]
[358401164,1745068238417,-2000.0,0.00027397,2]
[358401166,1745068238427,-2000.0,0.00027397,2]
[358401168,1745068238436,-2000.0,0.00027397,2]
[358401170,1745068238445,-2000.0,0.00027397,2]
[358401172,1745068238455,-2000.0,0.00027397,2]
[358401174,1745068238465,-2000.0,0.00027397,2]
[358401176,1745068238478,-2000.0,0.00027397,2]
[358401178,1745068238488,-2000.0,0.00027397,2]
[358401180,1745068238497,-2000.0,0.00027397,2]
[358401182,1745068238507,-2000.0,0.00027397,2]
[358401184,1745068238518,-2000.0,0.00027397,2]
[358401186,1745068238528,-2000.0,0.00027397,2]
[358401188,1745068238538,-2000.0,0.00027397,2]
[358401190,1745068238548,-2000.0,0.00027397,2]
[358401192,1745068238557,-444.21390352,0.00027397,2]
[358401194,1745068238567,-865.0,0.0002788,2]
[358401196,1745068238577,-4152.0,0.00027969,2]
[358401198,1745068238587,-2700.21292463,0.00028107,7]
[358401200,1745068238597,-420.0,0.00028516,2]
[358401202,1745068238610,-550.0,0.00029,2]
[358401204,1745068238619,-7265.8300325,0.00029473,2]
[358401206,1745068238629,-153.33,0.0003,2]
[358401208,1745068238638,-159.0,0.0003,22]
[358401210,1745068238648,-2700.21292463,0.00030314,9]
[358401212,1745068238657,-158.02,0.0003032,2]
[358401214,1745068238666,-622.77,0.00030456,2]
[358401216,1745068238676,-587.0,0.00030991,2]
[358401218,1745068238685,-3543.57,0.00031666,2]
[358401220,1745068238695,-150.0,0.00031947,7]
[358401222,1745068238704,-2700.21292463,0.00032521,10]
[358401224,1745068238714,-523.0,0.0003368,3]
[358401226,1745068238723,-2650.14,0.00034603,2]
[358401228,1745068238733,-2700.21292463,0.00034728,12]
[358401229,1745068238742,-40956.51,0.0003501,2]
[358401230,1745068238751,-158.02,0.0003545,2]
[358401231,1745068238760,-500.0,0.00036629,5]
[358401232,1745068238769,-231.16,0.00036685,2]
[358401233,1745068238779,-300.0,0.00036929,2]
[358401234,1745068238788,-2700.21292463,0.00036934,13]
[358401235,1745068238796,-6437.14535083,0.00037835,2]
[358401236,1745068238805,-5317.19,0.00037914,2]
[358401237,1745068238814,-300.0,0.00038299,2]
[358401238,1745068238823,-1234.56,0.00038801,5]
[358401239,1745068238832,-362.32357683,0.00038801,5]
[358401240,1745068238841,-2700.21292463,0.00039141,15]
[358401241,1745068238850,-250.0,0.00039299,2]
[358401242,1745068238859,-700.0,0.00039299,2]
[358401243,1745068238868,-200.0,0.00039299,2]
[358401244,1745068238878,-158.11,0.0004,2]
[358401245,1745068238889,-7978.07,0.00040038,2]
[358401246,1745068238898,-2033.48010288,0.00040093,2]
[358401247,1745068238908,-158.02,0.00040579,2]
[358401248,1745068238919,-2700.21292463,0.00041348,16]
[358401249,1745068238928,-1000.0,0.00042108,10]
[358401250,1745068238938,-6437.14535075,0.00042509,15]
[358401251,1745068238948,-569.14828088,0.00043143,2]
[358401252,1745068238957,-2700.21292463,0.00043555,17]
[358401253,1745068238966,-569.14828088,0.00045076,2]
[358401254,1745068238976,-236.22,0.00045367,2]
[358401255,1745068238985,-158.02,0.00045709,2]
[358401257,1745068238994,-2700.21292463,0.00045762,19]
[358401259,1745068239003,-1201.53027295,0.00046499,2]
[358401261,1745068239013,-150.0,0.000468,2]
[358401263,1745068239022,-1000.0,0.00047123,2]
[358401265,1745068239031,-6437.14535075,0.00047183,15]
[358401267,1745068239041,-82423.3851,0.00047383,2]
[358401269,1745068239050,-1200.0,0.000474,2]
[358401271,1745068239060,-23900.0,0.00047483,2]
[358401273,1745068239068,-200.0,0.00047553,6]
[358401275,1745068239078,-236.22,0.00047631,2]
[358401277,1745068239087,-150.0,0.00047792,30]
[358401279,1745068239096,-500.0,0.00047792,30]
[358401281,1745068239106,-513.08874829,0.00047795,30]
[358401282,1745068239115,-498.69,0.00047888,2]
[358401285,1745068239125,-157.68,0.00047902,120]
[358401287,1745068239135,-231.16,0.00047917,2]
[358401289,1745068239145,-2700.21292463,0.00047969,20]
[358401291,1745068239154,-25594.39,0.00047975,2]
[358401293,1745068239164,-9206.92485341,0.00048097,15]
[358401294,1745068239173,-539.44,0.00048197,2]
[358401296,1745068239182,-150.0,0.00048549,2]
[358401298,1745068239192,-159.554766,0.00048673,120]
[358401300,1745068239202,-13633.9272106,0.00048959,4]
[358401302,1745068239211,-188.58,0.000491,7]
[358401305,1745068239228,-159.554766,0.000497,60]
[358401307,1745068239239,-174.186776,0.000497,60]
[358401309,1745068239248,-159.554765,0.000497,60]
[358401311,1745068239257,-236.22,0.00049895,2]
[358401313,1745068239267,-173.000333,0.00049897,120]
[358401315,1745068239276,-159.554766,0.00049897,120]
[358401317,1745068239286,-174.186776,0.00049897,120]
[358401319,1745068239296,-159.554765,0.00049897,120]
[358401321,1745068239306,-13633.9272106,0.0004999,4]
[358401323,1745068239316,-25067.5,0.0005,120]
[358401325,1745068239325,-2700.21292463,0.00050176,22]
[358401327,1745068239335,-6437.14535075,0.00051857,15]
[358401329,1745068239346,-500.0,0.00052,120]
[358401331,1745068239356,-343.4,0.00052,120]
[358401333,1745068239366,-1000.0,0.00052068,120]
[358401335,1745068239377,-500.0,0.00052127,10]
[358401337,1745068239391,-236.22,0.00052159,2]
[358401339,1745068239402,-2700.21292463,0.00052383,23]
[358401341,1745068239411,-4102.95,0.00052712,2]
[358401343,1745068239421,-702.0,0.000529,2]
[358401345,1745068239430,-1000.0,0.00053014,120]
[358401347,1745068239439,-5505.37,0.00053294,2]
[358401349,1745068239449,-206.99,0.00053885,2]
[358401351,1745068239459,-1295.36,0.00054408,2]
[358401353,1745068239471,-1148.84,0.00054408,2]
[358401354,1745068239481,-236.22,0.00054422,2]
[358401355,1745068239490,-2700.21292463,0.0005459,25]
[358401356,1745068239499,-290.02,0.000546,14]
[358401357,1745068239508,-793.90673544,0.00054694,26]
[358401358,1745068239518,-200.0,0.000547,99]
[358401359,1745068239527,-400.0,0.0005477,7]
[358401360,1745068239537,-700.0,0.0005477,7]
[358401361,1745068239547,-13633.9272106,0.00054784,4]
[358401362,1745068239557,-500.0,0.00054794,120]
[358401363,1745068239567,-500.0,0.00054794,120]
[358401364,1745068239576,-500.0,0.00054794,120]
[358401365,1745068239587,-500.0,0.00054794,120]
[358401366,1745068239596,-580.84,0.00054794,120]
[358401368,1745068239606,-300.0,0.00054794,120]
[358401369,1745068239616,-500.0,0.00054794,120]
[358401370,1745068239626,-500.0,0.00054794,120]
[358401371,1745068239636,-500.0,0.00054794,120]
[358401372,1745068239646,-500.0,0.00054794,120]
[358401373,1745068239656,-500.0,0.00054794,120]
[358401374,1745068239666,-963.54,0.00054794,120]
[358401375,1745068239676,-500.0,0.00054794,120]
[358401376,1745068239686,-500.0,0.00054794,120]
[358401377,1745068239697,-500.0,0.00054794,120]
[358401378,1745068239707,-500.0,0.00054794,120]
[358401379,1745068239717,-500.0,0.00054794,120]
[358401381,1745068239727,-500.0,0.00054794,120]
[358401382,1745068239737,-500.0,0.00054794,120]
[358401383,1745068239747,-500.0,0.00054794,120]
[358401384,1745068239756,-500.0,0.00054794,120]
[358401385,1745068239766,-500.0,0.00054794,120]
[358401386,1745068239776,-500.0,0.00054794,120]
[358401387,1745068239785,-500.0,0.00054794,120]
[358401388,1745068239795,-535.94,0.00054794,120]
[358401389,1745068239805,-500.0,0.00054794,120]
[358401390,1745068239815,-500.0,0.00054794,120]
[358401391,1745068239826,-500.0,0.00054794,120]
[358401392,1745068239836,-500.0,0.00054794,120]
[358401393,1745068239845,-523.45997554,0.00054794,120]
[358401394,1745068239855,-500.0,0.00054794,120]
[358401395,1745068239865,-500.0,0.00054794,120]
[358401396,1745068239875,-610.4303741,0.00054794,120]
[358401397,1745068239884,-500.0,0.00054794,120]
[358401398,1745068239895,-500.0,0.00054794,120]
[358401399,1745068239904,-507.08524817,0.00054794,120]
[358401400,1745068239914,-788.3,0.00054794,120]